Cogmind - Beta 9.1 *** ADVENTURER MODE // 2019.11.03 @ 17:39:34 Player: sideriver81 Result: Core destroyed Performance ------------- Evolutions (4) 2000 Regions Visited (13) 2600 Robots Destroyed (63) 315 Value Destroyed (2496) 2496 Prototype IDs (4) 80 Alien Tech Used (0) 0 Bonus (1351) 1351 TOTAL SCORE: 8842 Bonus ------- Follower Combat Kills 1421 Met Zhirov 300 Friendly Fire -370 Cogmind --------- Core Integrity 0/850 Matter 300/300 Energy 100/100 System Corruption 0% Temperature Cool (0) Location -6/Archives Parts ------- Power (2) Propulsion (4) Gravmag System Gravmag System Utility (7) Enhanced Optical Array Long-range Sensor Array Experimental Signal Interpreter Improved Hacking Suite System Backup Module Weapon (2) Force Rifle Inventory (4) Energy Well (500) Flak Gun Advanced Datajack Advanced Datajack Peak State ------------ Power Micro Nuclear Core Light Angular Momentum Engine Propulsion Heavy Treads Improved Titanium Leg Improved Titanium Leg Utility Medium Storage Unit Medium Storage Unit Enhanced Optical Array Long-range Sensor Array Experimental Signal Interpreter Hacking Suite Hacking Suite Weapon Gauss Rifle Heavy Machine Gun Inventory Micro Nuclear Core Improved Titanium Leg Energy Well Long-range Sensor Array Advanced Terrain Scan Processor Transmission Jammer Damper Plating Hacking Suite Drone Bay Gauss Rifle [Rating: 65] Favorites ----------- Power Light Angular Momentum Engine Engine Light Angular Momentum Engine Power Core Micro Nuclear Core Propulsion Aluminum Leg Treads Advanced Treads Leg Aluminum Leg Hover Unit Gravmag System Utility Medium Storage Unit Device Long-range Sensor Array Storage Medium Storage Unit Processor Enhanced Optical Array Hackware Hacking Suite Protection Light Armor Plating Weapon Heavy Machine Gun Energy Gun Arc Projector Energy Cannon Improved EM Pulse Cannon Ballistic Gun Heavy Machine Gun Ballistic Cannon Flak Cannon Slashing Weapon Ripper Build | -11 -10 -9 -9 -8 -7 -7 -7 -6 -6 -6 -6 -6 -6 ------- Run | Scr Mat Mat Sto Mat Fac Low Low Fac Was Fac Ext Cet Arc Slots Evolved 8 | . . 2 . 2 2 . . 2 . . . . . Power 1 | . . . . . . . . 1 . . . . . Propulsion 2 | . . 2 . . . . . . . . . . . Utility 5 | . . . . 2 2 . . 1 . . . . . Weapon . | . . . . . . . . . . . . . . Parts Attached 96 | 7 1 3 8 14 18 4 1 10 4 4 10 5 7 Power 11 | 1 . . 1 1 2 . . 1 . 2 2 . 1 Engine 9 | 1 . . 1 1 1 . . . . 2 2 . 1 Core 2 | . . . . . 1 . . 1 . . . . . Reactor . | . . . . . . . . . . . . . . Propulsion 27 | 2 . 2 4 4 1 2 1 1 1 1 5 1 2 Treads 12 | . . 2 2 . . . . . 1 1 5 1 . Leg 13 | 2 . . 2 4 1 2 1 1 . . . . . Wheel . | . . . . . . . . . . . . . . Hover 2 | . . . . . . . . . . . . . 2 Flight . | . . . . . . . . . . . . . . Utility 30 | 1 1 1 2 6 4 1 . 6 1 1 . 3 3 Device 11 | . . . 1 . 2 1 . 3 1 . . 1 2 Storage 6 | 1 1 . . 2 . . . 1 . . . 1 . Processor 4 | . . . . 1 2 . . 1 . . . . . Hackware 4 | . . . . 1 . . . 1 . 1 . . 1 Protection 5 | . . 1 1 2 . . . . . . . 1 . Artifact . | . . . . . . . . . . . . . . Weapon 28 | 3 . . 1 3 11 1 . 2 2 . 3 1 1 Energy Gun 8 | 1 . . 1 . 3 1 . . . . 1 . 1 Energy Cannon 7 | . . . . . 5 . . 2 . . . . . Ballistic Gun 9 | 2 . . . 1 3 . . . 2 . 1 . . Ballistic Cannon 2 | . . . . 2 . . . . . . . . . Launcher . | . . . . . . . . . . . . . . Special Weapon . | . . . . . . . . . . . . . . Impact Weapon . | . . . . . . . . . . . . . . Slashing Weapon 2 | . . . . . . . . . . . 1 1 . Piercing Weapon . | . . . . . . . . . . . . . . Special Melee Weapon . | . . . . . . . . . . . . . . Unidentified Prototypes 4 | . . . . 1 1 . . 1 . . . 1 . Parts Lost 20 | . . . . 5 . . 1 . 1 . . 12 1 Power 4 | . . . . 1 . . . . . . . 2 1 Propulsion 8 | . . . . 3 . . . . . . . 5 . Utility 4 | . . . . 1 . . . . . . . 3 . Weapon 4 | . . . . . . . 1 . 1 . . 2 . Highest Loss Streak 12 | . . . . 4 . . 1 . 1 . . 12 1 Average Slot Usage (%) 93 | . 86 82 100 90 99 99 94 99 94 93 95 68 35 Engine 8 | . 14 11 11 8 5 7 7 6 6 6 13 6 2 Core 1 | . . . . . 1 . . 6 6 5 . . . Treads 8 | . . 6 12 . . . . . 2 10 21 14 . Leg 17 | . 28 22 31 29 30 29 30 26 20 8 . . . Device 6 | . . . 3 1 6 14 15 10 6 6 6 4 6 Storage 13 | . 15 16 11 17 15 15 15 13 13 13 13 11 . Processor 8 | . . . . 4 7 7 7 8 13 13 13 13 13 Hackware 8 | . . . . 3 7 7 7 11 13 13 13 7 3 Protection 2 | . . 4 7 7 7 . . . . . . 1 . Energy Gun 3 | . . . 8 . 2 8 9 3 . . 3 . 5 Energy Cannon 1 | . . . . . 6 5 . 8 2 . . . . Ballistic Gun 7 | . 28 22 13 3 2 . . . 7 13 8 1 . Ballistic Cannon 1 | . . . . 13 2 . . . . . . . . Naked Turns . | . . . . . . . . . . . . . . Heaviest Build 53 | 10 18 18 27 44 43 40 36 53 47 46 47 45 17 Greatest Support 112 | 20 20 40 40 45 55 60 60 70 70 90 112 88 22 Greatest Overweight (x) 4 | . . . 1 2 . . . . . . 1 4 2 Average Overweight (x) . | . . . . . . . . . . . . . . Largest Inventory Capacity 16 | 6 10 10 8 16 12 12 12 16 12 12 12 12 4 Average Capacity 10 | 5 6 9 8 11 12 12 12 12 12 12 12 10 4 Most Carried 12 | 4 6 8 8 12 12 12 12 12 12 12 12 12 4 Average Carried 10 | 2 5 6 7 10 11 11 12 11 11 11 11 9 2 Final Capacity 12 | 6 10 8 8 12 12 12 12 12 12 12 12 4 4 Final Carried 12 | 4 6 8 8 12 12 12 12 12 12 12 12 4 4 Class Distribution -------------------- 32% | Scavenger-Mutant 27% | Hacker-Skirmisher 19% | Mutant 6% | Commander-Skirmisher 5% | Scavenger-Skirmisher 4% | Hacker-Mutant 3% | Commander-Assassin Dominant Class ---------------- Mutant | -10/Materials Mutant | -9/Materials Mutant | -9/Storage Scavenger-Mutant | -8/Materials Scavenger-Mutant | -7/Factory Scavenger-Mutant | -7/Lower Caves Scavenger-Mutant | -7/Lower Caves Hacker-Mutant | -6/Factory Hacker-Skirmisher | -6/Waste Hacker-Skirmisher | -6/Factory Hacker-Skirmisher | -6/Extension Hacker-Assassin | -6/Cetus Mutant | -6/Archives Resources | -11 -10 -9 -9 -8 -7 -7 -7 -6 -6 -6 -6 -6 -6 ----------- Run | Scr Mat Mat Sto Mat Fac Low Low Fac Was Fac Ext Cet Arc Matter Collected 2289 | 233 70 51 214 659 238 40 10 45 95 104 440 10 80 Remotely . | . . . . . . . . . . . . . . Salvage Created 3091 | . 70 51 432 541 402 146 70 45 . 209 979 66 80 Parts 151 | . 3 6 26 24 21 7 2 3 . 11 41 . 7 Haulers Intercepted 1 | . . . . . 1 . . . . . . . . Recyclers Shooed 5 | . 1 . . 3 . . . . . . 1 . . Parts Field Recycled . | . . . . . . . . . . . . . . Retrieved Matter . | . . . . . . . . . . . . . . Parts Self-Destructed 2 | . . . . . . 2 . . . . . . . Prevented 3 | . . . . . . 3 . . . . . . . Kills | -11 -10 -9 -9 -8 -7 -7 -7 -6 -6 -6 -6 -6 -6 ------- Run | Scr Mat Mat Sto Mat Fac Low Low Fac Was Fac Ext Cet Arc Combat Hostiles Destroyed 45 | . 1 1 8 10 5 1 1 . . 4 13 1 . Melee 1 | . . . . . . . . . . . . 1 . Guns 31 | . 1 1 8 1 2 1 . . . 4 13 . . Cannons 11 | . . . . 9 2 . . . . . . . . Classes Destroyed 14 | . 2 1 2 3 3 . . 1 . . 2 . . Worker 3 | . 1 . . 1 1 . . . . . . . . Builder 1 | . . . . . . . . . . . 1 . . Hauler 1 | . . . . . 1 . . . . . . . . Recycler 4 | . . . . 3 1 . . . . . . . . Mechanic 1 | . . . . 1 . . . . . . . . . Operator 1 | . . . . . . . . 1 . . . . . Watcher 5 | . . . 1 1 . . . 1 . . 2 . . Swarmer 2 | . . . . . 2 . . . . . . . . Grunt 22 | . 1 . 3 6 1 . . . . 2 9 . . Brawler 1 | . . . 1 . . . . . . . . . . Sentry 14 | . . 1 4 1 1 1 . . . 2 4 . . Hunter 3 | . . . . 3 . . . . . . . . . Programmer 1 | . . . . . 1 . . . . . . . . Cetus Guard 1 | . . . . . . . . . . . . 1 . Thug 2 | . . . . . . . 1 . . . 1 . . Butcher 1 | . . . . . . . . . . . 1 . . Best Kill Streak 4 | . 2 1 3 4 4 1 1 1 . 1 4 1 . Combat Bots Only 4 | . 1 1 3 4 2 1 1 . . 1 4 1 . Max Kills in Single Turn 2 | . 1 1 1 1 2 1 1 1 . 1 1 1 . Gunslinging . | . . . . . . . . . . . . . . Exploded . | . . . . . . . . . . . . . . Melee 1 | . . . . . . . . . . . . 1 . Uniques/NPCs Destroyed . | . . . . . . . . . . . . . . Combat | -11 -10 -9 -9 -8 -7 -7 -7 -6 -6 -6 -6 -6 -6 -------- Run | Scr Mat Mat Sto Mat Fac Low Low Fac Was Fac Ext Cet Arc Damage Taken 5706 | . 35 53 386 702 300 122 98 . 35 190 1291 2338 156 Core 1108 | . . 44 39 97 35 23 16 . . 42 134 590 88 Absorbed by Shields . | . . . . . . . . . . . . . . Core Remaining (%) 90 | 100 100 . 79 82 . . 89 . . . . . . Volleys Fired 216 | . 15 4 43 40 24 6 5 4 . 8 55 . 12 Largest 2 | . 2 2 2 2 2 2 2 2 . 2 2 . 1 Hottest 138 | . 40 40 76 88 138 124 110 138 . 58 111 . 80 Shots Fired 395 | . 30 8 77 80 42 9 10 8 . 16 103 . 12 Gun 300 | . 30 8 77 12 25 6 10 1 . 16 103 . 12 Cannon 95 | . . . . 68 17 3 . 7 . . . . . Launcher . | . . . . . . . . . . . . . . Special . | . . . . . . . . . . . . . . Kinetic 269 | . 30 8 34 80 16 . . . . 16 85 . . Thermal 73 | . . . 43 . . . . . . . 18 . 12 Explosive . | . . . . . . . . . . . . . . Electromagnetic 53 | . . . . . 26 9 10 8 . . . . . Robot Hit Streak 34 | . 5 5 31 16 13 12 10 3 . 7 34 . 13 Robot Miss Streak 8 | . 1 1 1 8 1 1 1 3 . 1 3 . 1 Penetration Max 1 | . . . . . . . . . . . 1 . . Secondary Targets 3 | . . . 1 . . . . . . . 2 . . Max Gunslinging Chain 1 | . . . 1 . . . . . . . 1 . . Shots Hit Robots 307 | . 17 6 44 68 35 8 8 4 . 12 87 7 11 Core Hits 170 | . 4 2 18 63 16 5 3 2 . 6 42 3 6 Critical Hits 2 | . . . . . . . . . . . . . 2 Critical Kills 1 | . . . . . . . . . . . . . 1 Critical Parts Destroyed 1 | . . . . . . . . . . . . . 1 Melee Attacks 11 | . . . . . . . . . . . 3 8 . Impact . | . . . . . . . . . . . . . . Slashing 11 | . . . . . . . . . . . 3 8 . Piercing . | . . . . . . . . . . . . . . Sneak Attacks . | . . . . . . . . . . . . . . Combat Hostiles . | . . . . . . . . . . . . . . Follow-up Attacks 2 | . . . . . . . . . . . . 2 . Damage Inflicted 6077 | . 195 65 583 1034 763 102 173 182 . 283 2198 238 261 Guns 4281 | . 195 65 583 145 394 55 102 . . 283 2198 . 261 Cannons 1438 | . . . . 889 320 47 . 182 . . . . . Explosions 120 | . . . . . 49 . 71 . . . . . . Melee 238 | . . . . . . . . . . . . 238 . Ramming . | . . . . . . . . . . . . . . Kinetic 3929 | . 195 65 234 1034 316 . . . . 283 1802 . . Thermal 1126 | . . . 349 . 49 . 71 . . . 396 . 261 Explosive . | . . . . . . . . . . . . . . Electromagnetic 784 | . . . . . 398 102 102 182 . . . . . Impact . | . . . . . . . . . . . . . . Slashing 238 | . . . . . . . . . . . . 238 . Piercing . | . . . . . . . . . . . . . . Highest Corruption 2 | . . . . . 2 2 2 . . . . . . Average Corruption 1 | . . . . . 1 2 2 . . . . . . Corruption Purged . | . . . . . . . . . . . . . . Effects 4 | . . . . . 1 1 2 . . . . . . Heat Flow Errors 1 | . . . . . . 1 . . . . . . . Energy Discharges 1 | . . . . . 1 . . . . . . . . Data Loss (minor) 1 | . . . . . . . 1 . . . . . . Targeting Errors 1 | . . . . . . . 1 . . . . . . Overload Shots . | . . . . . . . . . . . . . . Overflow Damage 27 | . . . . . . . 12 15 . . . . . Projectiles 15 | . . . . . . . . 15 . . . . . Explosions 12 | . . . . . . . 12 . . . . . . Melee . | . . . . . . . . . . . . . . Knockbacks 24 | . . . . 24 . . . . . . . . . Impact . | . . . . . . . . . . . . . . Kinetic 23 | . . . . 23 . . . . . . . . . Secondary 1 | . . . . 1 . . . . . . . . . Self-Inflicted Damage 49 | . . . . . . . 49 . . . . . . Shots 1 | . . . . . . . 1 . . . . . . Rammed . | . . . . . . . . . . . . . . Targets Rammed . | . . . . . . . . . . . . . . Kicked . | . . . . . . . . . . . . . . Crushed . | . . . . . . . . . . . . . . Highest Temperature 330 | . 12 6 153 330 129 114 174 138 . 12 298 . 132 Average Temperature 62 | . 7 6 52 100 54 63 86 53 . 9 52 . 42 Received Heat Transfer 1725 | . 24 27 135 306 9 54 27 . . 9 603 531 . Effects 1 | . . . . 1 . . . . . . . . . Energy Bleed 1 | . . . . 1 . . . . . . . . . Siege Activations . | . . . . . . . . . . . . . . Robots Corrupted 2 | . . . . . 1 . 1 . . . . . . Combat Hostiles 2 | . . . . . 1 . 1 . . . . . . Parts Fried 9 | . . . . . 3 1 2 3 . . . . . Impact Corruptions . | . . . . . . . . . . . . . . Robots Melted . | . . . . . . . . . . . . . . Combat Hostiles . | . . . . . . . . . . . . . . Parts Melted 5 | . . . 2 . . . . . . . 1 1 1 Heat Transferred 2024 | . . . 888 . 50 . 50 . . . 629 . 407 Parts Sabotaged . | . . . . . . . . . . . . . . Parts Stolen . | . . . . . . . . . . . . . . Parts Stripped . | . . . . . . . . . . . . . . Power Chain Reactions 2 | . . . . . 1 . 1 . . . . . . Missiles Intercepted . | . . . . . . . . . . . . . . Alert | -11 -10 -9 -9 -8 -7 -7 -7 -6 -6 -6 -6 -6 -6 ------- Run | Scr Mat Mat Sto Mat Fac Low Low Fac Was Fac Ext Cet Arc Peak Influence 287 | . 68 72 287 246 206 . . 57 36 252 226 20 91 Average Influence 79 | . 34 56 117 116 65 . . 9 28 94 100 4 20 Maximum Alert Level 1 | . . . 1 1 1 . . . . 1 1 . . Low Security (%) 93 | . . . . . . . . . . . . . . Level 1 6 | . . . . . . . . . . . . . . Level 2 . | . . . . . . . . . . . . . . Level 3 . | . . . . . . . . . . . . . . Level 4 . | . . . . . . . . . . . . . . Level 5 . | . . . . . . . . . . . . . . High Security . | . . . . . . . . . . . . . . Max Security . | . . . . . . . . . . . . . . Squads Dispatched 13 | . . 1 1 3 2 . . 1 . 1 4 . . Investigation 4 | . . . . 2 . . . . . . 2 . . Extermination 1 | . . . . . 1 . . . . . . . . Reinforcement 8 | . . 1 1 1 1 . . 1 . 1 2 . . Assault . | . . . . . . . . . . . . . . Garrison . | . . . . . . . . . . . . . . Intercept . | . . . . . . . . . . . . . . Construction Impeded . | . . . . . . . . . . . . . . Haulers Reinforced . | . . . . . . . . . . . . . . Stealth | -11 -10 -9 -9 -8 -7 -7 -7 -6 -6 -6 -6 -6 -6 --------- Run | Scr Mat Mat Sto Mat Fac Low Low Fac Was Fac Ext Cet Arc Distress Signals 6 | . . . . 2 . . . 1 . . 2 1 . Communications Jammed 1 | . . . . . 1 . . . . . . . . Distress Signals 1 | . . . . . 1 . . . . . . . . Times Spotted 133 | . 6 2 12 18 13 1 1 3 6 16 45 10 . Peak Tracking Total 9 | . 3 1 3 4 4 1 1 1 6 5 8 9 . Tactical Retreats 4 | . . . . . 1 . . . . . 3 . . Traps | -11 -10 -9 -9 -8 -7 -7 -7 -6 -6 -6 -6 -6 -6 ------- Run | Scr Mat Mat Sto Mat Fac Low Low Fac Was Fac Ext Cet Arc Traps Triggered 7 | . . . 4 . . . . 1 . 1 1 . . Indirectly . | . . . . . . . . . . . . . . Trap Hack Attempts . | . . . . . . . . . . . . . . Triggered . | . . . . . . . . . . . . . . Disarmed . | . . . . . . . . . . . . . . Reprogrammed . | . . . . . . . . . . . . . . Reused . | . . . . . . . . . . . . . . Traps Extracted . | . . . . . . . . . . . . . . Installed . | . . . . . . . . . . . . . . Triggered . | . . . . . . . . . . . . . . Machines | -11 -10 -9 -9 -8 -7 -7 -7 -6 -6 -6 -6 -6 -6 ---------- Run | Scr Mat Mat Sto Mat Fac Low Low Fac Was Fac Ext Cet Arc Machines Disabled 7 | . . . . . . . . . . 1 5 . 1 Max in Single Turn 1 | . . . . . . . . . . . 1 . 1 Garrison Access 2 | . . . 1 . 1 . . . . . . . . Machines Sabotaged . | . . . . . . . . . . . . . . Garrisons Compromised . | . . . . . . . . . . . . . . Overloaded Fab Kills . | . . . . . . . . . . . . . . Fab Network Shutdowns . | . . . . . . . . . . . . . . Hacking | -11 -10 -9 -9 -8 -7 -7 -7 -6 -6 -6 -6 -6 -6 --------- Run | Scr Mat Mat Sto Mat Fac Low Low Fac Was Fac Ext Cet Arc Machines Accessed 34 | . 2 1 6 4 3 . . 2 . 4 12 . . Terminals 27 | . 1 1 5 2 2 . . 2 . 2 12 . . Fabricators . | . . . . . . . . . . . . . . Repair Stations . | . . . . . . . . . . . . . . Recycling Units 4 | . 1 . . 1 . . . . . 2 . . . Scanalyzers 1 | . . . . 1 . . . . . . . . . Garrison Access 2 | . . . 1 . 1 . . . . . . . . Total Hacks 82 | . 5 5 17 12 4 . . 5 . 10 24 . . Successful 49 | . 5 3 9 7 2 . . 3 . 6 14 . . Failed 33 | . . 2 8 5 2 . . 2 . 4 10 . . Catastrophic 3 | . . . 3 . . . . . . . . . . Database Lockouts . | . . . . . . . . . . . . . . Manual 34 | . 2 4 9 5 . . . 3 . 6 5 . . Terminals 69 | . 3 5 15 7 2 . . 5 . 8 24 . . Fabricators . | . . . . . . . . . . . . . . Repair Stations . | . . . . . . . . . . . . . . Recycling Units 7 | . 2 . . 3 . . . . . 2 . . . Scanalyzers 2 | . . . . 2 . . . . . . . . . Garrison Access 4 | . . . 2 . 2 . . . . . . . . Terminal Hacks 38 | . 2 2 7 5 1 . . 3 . 4 14 . . Part Schematic 1 | . . . 1 . . . . . . . . . . Open Door 10 | . . . 1 . . . . . . . 9 . . Level Access Points 1 | . 1 . . . . . . . . . . . . Branch Access Points 3 | . . . 1 1 . . . . . 1 . . . Machine Index 1 | . . . . . 1 . . . . . . . . Terminal Index 2 | . . . . . . . . 1 . . 1 . . Alert Level 2 | . . 1 . 1 . . . . . . . . . Unreport Threat 5 | . . . . 1 . . . 1 . 1 2 . . Locate Traps 11 | . 1 1 3 1 . . . 1 . 2 2 . . Recall Reinforcements 1 | . . . 1 . . . . . . . . . . Zone Layout 1 | . . . . 1 . . . . . . . . . Fabricator Hacks . | . . . . . . . . . . . . . . Repair Station Hacks . | . . . . . . . . . . . . . . Recycling Unit Hacks 5 | . 2 . . 1 . . . . . 2 . . . Report Inventory 3 | . 1 . . . . . . . . 2 . . . Retrieve Components 2 | . 1 . . 1 . . . . . . . . . Scanalyzer 1 | . . . . 1 . . . . . . . . . Insert Component 1 | . . . . 1 . . . . . . . . . Garrison Access Hacks 3 | . . . 2 . 1 . . . . . . . . Unlock Access 1 | . . . 1 . . . . . . . . . . Seal Access 2 | . . . 1 . 1 . . . . . . . . Unauthorized Hacks 4 | . 2 2 . . . . . . . . . . . Terminals 2 | . 1 1 . . . . . . . . . . . Track 2 | . 1 1 . . . . . . . . . . . Fabricators . | . . . . . . . . . . . . . . Repair Stations . | . . . . . . . . . . . . . . Recycling Units . | . . . . . . . . . . . . . . Scanalyzers . | . . . . . . . . . . . . . . Garrison Access . | . . . . . . . . . . . . . . Data Cores Recovered 1 | . . . . . . . . 1 . . . . . Used . | . . . . . . . . . . . . . . Hacking Detections 23 | . . 1 5 4 2 . . 2 . 3 6 . . Full Trace Events 3 | . . . . 2 . . . . . . 1 . . Feedback Events . | . . . . . . . . . . . . . . Feedback Blocked . | . . . . . . . . . . . . . . Robot Schematics Acquired . | . . . . . . . . . . . . . . Robots Built . | . . . . . . . . . . . . . . Matter . | . . . . . . . . . . . . . . Time . | . . . . . . . . . . . . . . Total Robot Build Rating . | . . . . . . . . . . . . . . Part Schematics Acquired 1 | . . . 1 . . . . . . . . . . Parts Built . | . . . . . . . . . . . . . . Matter . | . . . . . . . . . . . . . . Time . | . . . . . . . . . . . . . . Total Part Build Rating . | . . . . . . . . . . . . . . Parts Repaired . | . . . . . . . . . . . . . . Time . | . . . . . . . . . . . . . . Parts Recycled . | . . . . . . . . . . . . . . Recycled Matter . | . . . . . . . . . . . . . . Retrieved Matter . | . . . . . . . . . . . . . . Retrieved Components 8 | . 1 . . 7 . . . . . . . . . Parts Scanalyzed 1 | . . . . 1 . . . . . . . . . Part Schematics Acquired . | . . . . . . . . . . . . . . Parts Damaged . | . . . . . . . . . . . . . . Bothacking | -11 -10 -9 -9 -8 -7 -7 -7 -6 -6 -6 -6 -6 -6 ------------ Run | Scr Mat Mat Sto Mat Fac Low Low Fac Was Fac Ext Cet Arc Used RIF Installer . | . . . . . . . . . . . . . . Robots Hacked . | . . . . . . . . . . . . . . Non-combat . | . . . . . . . . . . . . . . Combat . | . . . . . . . . . . . . . . Robot Hacks Applied . | . . . . . . . . . . . . . . Relay Couplers Released . | . . . . . . . . . . . . . . Robots Rewired 19 | . . . . . . . . . . . 19 . . Allies Hacked . | . . . . . . . . . . . . . . Hacks Repelled . | . . . . . . . . . . . . . . Allies | -11 -10 -9 -9 -8 -7 -7 -7 -6 -6 -6 -6 -6 -6 -------- Run | Scr Mat Mat Sto Mat Fac Low Low Fac Was Fac Ext Cet Arc Total Allies 53 | . . . . . . . . . 19 . 31 . 3 Largest Group 19 | . . . . . . . . . 19 9 12 7 3 Highest-Rated Group 714 | . . . . . . . . . 714 377 344 211 357 Highest-Rated Ally 122 | . . . . . . . . . 50 50 46 37 122 Total Orders 6 | . . . . 1 3 . . 1 . . 1 . . EXPLORE 6 | . . . . 1 3 . . 1 . . 1 . . Ally Attacks 389 | . . . . . . . . . 83 47 231 20 8 Total Damage 11985 | . . . . . . . . . 4235 2351 4519 397 483 Kills 54 | . . . . . . . . . 12 11 27 1 3 Allies Corrupted 1 | . . . . . . . . . . . 1 . . Allies Melted . | . . . . . . . . . . . . . . Intel | -11 -10 -9 -9 -8 -7 -7 -7 -6 -6 -6 -6 -6 -6 ------- Run | Scr Mat Mat Sto Mat Fac Low Low Fac Was Fac Ext Cet Arc Robot Analysis Total . | . . . . . . . . . . . . . . Derelict Logs Recovered 3 | . . . . . . 2 1 . . . . . . Drone Launches 12 | . . . 2 2 4 . . 2 . . 2 . . Drone Recoveries . | . . . . . . . . . . . . . . Exploration | -11 -10 -9 -9 -8 -7 -7 -7 -6 -6 -6 -6 -6 -6 ------------- Run | Scr Mat Mat Sto Mat Fac Low Low Fac Was Fac Ext Cet Arc Turns Passed 6591 | 81 236 76 682 585 834 495 95 292 398 748 1707 128 234 Spaces Moved 3783 | 59 152 40 406 297 447 382 63 198 281 432 877 86 63 Core 50 | 9 . . . . . . . . . . . 31 10 Treads 1487 | . . 4 11 . . . . . 108 432 877 55 . Legs 2193 | 50 152 36 395 297 447 382 63 198 173 . . . . Wheels . | . . . . . . . . . . . . . . Hover 53 | . . . . . . . . . . . . . 53 Flight . | . . . . . . . . . . . . . . Fastest Speed 50 | 50 120 120 120 120 120 122 122 122 125 160 145 50 50 Average Speed 136 | 109 120 124 124 137 121 122 122 123 138 162 155 118 111 Slowest Speed 250 | 120 120 160 160 180 122 122 122 125 160 165 165 250 150 Overloaded Moves . | . . . . . . . . . . . . . . Propulsion Burnouts . | . . . . . . . . . . . . . . Robots Hopped . | . . . . . . . . . . . . . . Cave-ins Triggered . | . . . . . . . . . . . . . . Exploration Rate (%) 40 | 4 27 5 53 22 24 64 10 17 96 15 87 65 78 Regions Visited 13 Branch Regions 6 Pre-discovered Areas . | . . . . . . . . . . . . . . Known Exits Taken 4 | . 1 . . . . . . . . 1 1 1 . Unknown Exits Taken 7 | 1 . 1 1 1 1 1 1 . . . . . . Scrap Searched 2 | . . . . . . 2 . . . . . . . Spaces Dug 1 | . . . . . . . . . . . 1 . . Terrain Destroyed 12 | . . . . . . . 10 . . 1 1 . . Melee 1 | . . . . . . . . . . . 1 . . Projectile 1 | . . . . . . . . . . 1 . . . AOE 10 | . . . . . . . 10 . . . . . . Actions | -11 -10 -9 -9 -8 -7 -7 -7 -6 -6 -6 -6 -6 -6 --------- Run | Scr Mat Mat Sto Mat Fac Low Low Fac Was Fac Ext Cet Arc Total 4826 | 74 178 58 511 399 701 402 71 237 292 463 1125 103 212 Wait 476 | . 7 9 17 25 180 7 2 14 . 7 82 . 126 Move 3771 | 58 151 39 405 296 446 381 62 198 280 431 876 85 63 Hop . | . . . . . . . . . . . . . . Pick Up 70 | 8 3 2 10 12 13 1 . 5 3 5 5 . 3 Fast Attach 43 | 3 1 3 3 8 7 1 . 3 1 3 3 3 4 Attach 18 | 4 . . . 4 1 . . 2 2 . . 2 3 Detach 2 | . . . 1 . . . . . . . . 1 . Swap 35 | . . . 5 2 10 3 1 5 1 1 7 . . Drop 88 | 1 1 1 17 11 18 3 1 5 5 8 11 6 . Fire 216 | . 15 4 43 40 24 6 5 4 . 8 55 . 12 Melee 9 | . . . . . . . . . . . 3 6 . Ram . | . . . . . . . . . . . . . . Kick . | . . . . . . . . . . . . . . Crush . | . . . . . . . . . . . . . . Escape Stasis 9 | . . . 9 . . . . . . . . . . Rewire 83 | . . . . . . . . . . . 82 . 1 Trap . | . . . . . . . . . . . . . . Miscellaneous 6 | . . . 1 1 2 . . 1 . . 1 . . Route ------- -11/Scrapyard -10/Materials (discovered 3 exits: *Mat x3) -9/Materials -9/Storage (discovered 2 exits: *Mat / Rec) -8/Materials -7/Factory -7/Lower Caves -7/Lower Caves (discovered 2 exits: *Fac / Dat) -6/Factory -6/Waste -6/Factory (discovered 4 exits: Low x2 / *Ext x2) -6/Extension (discovered 2 exits: *Fac / *Cet) -6/Cetus -6/Archives (discovered 1 exit: [*Hub]) History --------- Turn | Location | Event 9 | -11/Scrapyard | Discovered new exit (range 15) 82 | -11/Scrapyard | Entered Materials 167 | -10/Materials | Identified exit to Materials 318 | -10/Materials | Build established: Mutant 318 | -10/Materials | Entered another Materials area 318 | -9/Materials | Evolved 2 slots: Propulsion x2 322 | -9/Materials | Discovered new exit (range 16) 394 | -9/Materials | Entered Storage 448 | -9/Storage | Identified exit to Recycling 798 | -9/Storage | Identified exit to Garrison 1058 | -9/Storage | Discovered new exit (range 16) 1076 | -9/Storage | Entered Materials 1076 | -8/Materials | Evolved 2 slots: Utility x2 1235 | -8/Materials | Lost 4 parts (1p2n1u) 1637 | -8/Materials | Discovered new exit (range 12) 1643 | -8/Materials | Build established: Scavenger-Mutant 1661 | -8/Materials | Entered Factory 1661 | -7/Factory | Evolved 2 slots: Utility x2 2424 | -7/Factory | Discovered new exit (range 17) 2495 | -7/Factory | Entered Lower Caves 2690 | -7/Lower Caves | Attracted the attention of an 0b10 checkpoint 2804 | -7/Lower Caves | Learned Factory emergency access door positions 2924 | -7/Lower Caves | Discovered new exit (range 21) 2952 | -7/Lower Caves | Encountered a Warlord checkpoint 2971 | -7/Lower Caves | Learned Factory garrison access intel 2990 | -7/Lower Caves | Entered another Lower Caves area 3018 | -7/Lower Caves | Ambushed by wild Derelicts 3059 | -7/Lower Caves | Identified exit to Data Miner 3062 | -7/Lower Caves | Discovered new exit (range 4) 3085 | -7/Lower Caves | Entered Factory 3085 | -6/Factory | Evolved 2 slots: Power x1, Utility x1 3087 | -6/Factory | Loaded intel: 4 garrison access locations 3275 | -6/Factory | Found Prototype Processor 3275 | -6/Factory | Identified Exp. Signal Interpreter 3377 | -6/Factory | Sucked down chute 3377 | -6/Factory | Entered Waste 3405 | -6/Waste | 1 allies followed down the chute 3435 | -6/Waste | Spotted C-40 Crusher 3443 | -6/Waste | Spotted C-40 Crusher 3450 | -6/Waste | Spotted C-40 Crusher 3451 | -6/Waste | Spotted C-40 Crusher 3454 | -6/Waste | Spotted C-40 Crusher 3461 | -6/Waste | Crushed by Compactor (1 part destroyed, 1 dropped) 3470 | -6/Waste | Spotted C-40 Crusher 3492 | -6/Waste | Warlord forces began an assault 3496 | -6/Waste | Allies destroyed C-40 Crusher 3499 | -6/Waste | Allies destroyed C-40 Crusher 3508 | -6/Waste | Allies destroyed C-40 Crusher 3513 | -6/Waste | Allies destroyed C-40 Crusher 3606 | -6/Waste | Found Damper Plating 3695 | -6/Waste | Discovered new exit (range 22) 3774 | -6/Waste | Identified exit to Factory 3775 | -6/Waste | Entered Factory 3775 | -6/Factory | Accompanied by 9 allies 3836 | -6/Factory | Build established: Hacker-Skirmisher 4215 | -6/Factory | Identified exit to Lower Caves 4215 | -6/Factory | Identified exit to Extension 4523 | -6/Factory | Entered Extension 4523 | -6/Extension | Accompanied by 4 allies 4534 | -6/Extension | Disrupted transfer network 4649 | -6/Extension | Rescued a captive Derelict 4862 | -6/Extension | Rescued a captive Derelict 4863 | -6/Extension | Rescued a captive Derelict 4994 | -6/Extension | Rescued a captive Derelict 5024 | -6/Extension | Rescued a captive Derelict 5118 | -6/Extension | Rescued a captive Derelict 5146 | -6/Extension | Spotted B-75 Beast 5160 | -6/Extension | Rescued a captive Derelict 5161 | -6/Extension | Rescued a captive Derelict 5175 | -6/Extension | Spotted B-75 Beast 5183 | -6/Extension | Allies destroyed B-75 Beast 5206 | -6/Extension | Allies destroyed B-75 Beast 5413 | -6/Extension | Rescued a captive Derelict 5413 | -6/Extension | Rescued a captive Derelict 5512 | -6/Extension | Rescued a captive Derelict 5519 | -6/Extension | Build established: Scavenger-Skirmisher 5621 | -6/Extension | Rescued a captive Derelict 5816 | -6/Extension | Discovered new exit (range 10) 5818 | -6/Extension | Discovered new exit (range 6) 5825 | -6/Extension | Identified exit to Cetus 5829 | -6/Extension | Identified exit to Factory 6230 | -6/Extension | Entered Cetus 6230 | -6/Cetus | Accompanied by 7 allies 6252 | -6/Cetus | Spotted Cetus Guard 6254 | -6/Cetus | Spotted Cetus Guard 6255 | -6/Cetus | Spotted Cetus Guard 6255 | -6/Cetus | Spotted Cetus Guard 6287 | -6/Cetus | Destroyed Cetus Guard 6318 | -6/Cetus | Core integrity fell below 50% 6344 | -6/Cetus | Core integrity fell below 20% 6347 | -6/Cetus | Discovered new exit (range 21) 6357 | -6/Cetus | Identified exit to Archives 6358 | -6/Cetus | Entered Archives 6364 | -6/Archives | Lost 12 parts (2p5n3u2w) 6531 | -6/Archives | Met Zhirov 6531 | -6/Archives | Discovered new exit (range 22) 6537 | -6/Archives | Reinforcements dispatched to Archives 6539 | -6/Archives | Unable to access archive contents 6539 | -6/Archives | Unable to access archive contents 6592 | -6/Archives | Zhirov detonated Archives 6592 | -6/Archives | Core destroyed Last Messages --------------- 06537_ ALERT: Rogue bot located, all non-essential units route around Archives area. 06537_ Zhirov: "We don't have time to finish the decryption and erase our tracks, I'm jamming their communications! Perun, Svarog, let none of them escape!" 06539_ Connecting with Archive Terminal... 06556_ G-50 Soldier suffers critical hit. 06572_ Archive Hub disabled. 06573_ Destroyed Imp. System Shield. 06574_ Svarog warps through subspace. 06581_ Imp. Hacking Suite melted. 06581_ O-32 Director destroyed. 06583_ Acquired 20 matter. 06585_ Acquired Gravmag System. 06587_ Acquired System Backup Module. 06589_ Acquired 20 matter. 06590_ Acquired Adv. Datajack. 06592_ O-32 Director destroyed. 06592_ Lgt. Angular Momentum Engine destroyed. 06592_ O-32 Director destroyed. Map ----- +----------------------------------------------------+ | ?????????????????#""" """# #??????????????? | | ????????????????##"" ""# ##?????????????? | | ??############### ####??????????? | | ??# """"#?????????? | | ??# """"??????????? | | ??# """"?????????? | | ??#####+##### V"#?????????? | | ??# """"?????????? | | ??# "#?????????? | | ??# ?????????? | | ??#"" ###?????? | | ??#" ????? | | ??#" ????? | | ??#" ????? | | ??### #?????? | | ????# ??????? | | ????# ?????? | | ?????# ?????? | | ?????# ?????? | | ??????# #???????? | | ??????# #???????? | | ????????# #????????? | | ??????????? #????????? | | ?????????????# #?????????? | | ?????????????# #?????????? | | ???????????????# @ #???????????? | | ???????????????### ##????????????? | | ?????????????????# < # ""##?????????????? | | ?????????????????# # """"#??????????????? | | ?????????????????#############??????????????? | | ????????????????????????????????????????????? | | ????????????????????????????????????????????? | | | | | | | | | | | | | | | | | | | | | | | | | | | | | | | | | | | | | +----------------------------------------------------+ Best States ------------- Heat Dissipation 37 Coolant Potential 65 Energy Generation 29 Energy Capacity 600 Matter Stores 300 Matter Capacity 300 Sight Range 22 Robot Scan Range 20 Terrain Scan Density 10 Jamming Range 12 Armor Coverage 225 Resistance: KI 20 Resistance: TH 20 Resistance: EX 20 Resistance: EM 20 Resistance: I 20 Resistance: S 20 Resistance: P 20 Evasion (%) 53 Armor Integrity Analysis 33 Recoil Reduction 4 Offensive Hacking 20 Item Schematics ----------------- Imp. Sensor Array | -9/Storage | Hacked Robot Schematics ------------------ None Fabricated ------------ Nothing Alien Tech Used ----------------- None Achievements -------------- A New Friend More Dakka Please Challenges ------------ None Game ------ Seed WeaponMiniCarapace Manual? 0 Play Time 01:57:48 Cumulative 42.4 hours Start 2019.11.03 @ 15:36:37 End 2019.11.03 @ 17:39:34 Sessions 1 Manual Loads 0 Difficulty Adventurer Special Mode None Game No. 13 Rogue -13 Adventurer 13 Explorer 0 Win Type - Total 1 Types 1/0/0/0/0/0/0 Lore% 14 Gallery% 35 Achievement% 29 Wizard Run 0 Options --------- ASCII 0 Keyboard 0 Movement Mouse Keybinds 0 Fullscreen 0 Font 20/Terminus Map View 76x50 Tactical HUD 1 Map Filters NONE Filters NONE Steam 1 RUN: 9455e8d1-b765-4393-aabd-e98e3146578e